bitfinex-derivatives/quotes_SOLF0:USTF0_20241222
["timestamp","ask_amount","ask_price","bid_price","bid_amount"]
[1734866040697,2.54,186.44,186.35,72.59671192]
[1734866042202,2.54,186.44,186.36,92.57795697]
[1734866043204,2.54,186.44,186.37,13.29802793]
[1734866043799,2.54,186.44,186.38,4.29]
[1734866043800,3.291,186.43,186.38,4.29]
[1734866046801,1.6286,186.43,186.38,4.29]
[1734866048907,1.6286,186.43,186.38,1.6842]
[1734866049605,1.6286,186.43,186.33,79.27992904]
[1734866049998,0.95455927,186.42,186.32,3.69]
[1734866050904,0.95455927,186.42,186.32,7.98]
[1734866051600,1.77047635,186.41,186.32,7.98]
[1734866051798,5.26503562,186.4,186.32,7.98]
[1734866051999,1.77047635,186.39,186.32,7.98]
[1734866052199,1.77047635,186.38,186.32,7.98]
[1734866052402,1.77047635,186.37,186.32,7.98]
[1734866052608,10.57999529,186.36,186.32,7.98]
[1734866052810,4.31047635,186.35,186.32,7.98]
[1734866053008,4.68530056,186.34,186.32,7.98]
[1734866053204,4.68530056,186.33,186.32,7.98]
[1734866053400,4.68530056,186.33,186.26,13.29897779]
[1734866053606,4.68530056,186.32,186.25,13.29897779]
[1734866053906,7.22530056,186.31,186.25,13.29897779]
[1734866054205,7.22530056,186.3,186.25,13.29897779]
[1734866054405,4.68530056,186.29,186.25,13.29897779]
[1734866054605,4.68530056,186.28,186.22,1.729]
[1734866054806,4.6826618,186.27,186.26,3.25]
[1734866055908,4.67850693,186.27,186.26,3.25]
[1734866056811,1.76632148,186.27,186.26,3.25]
[1734866057714,4.67329995,186.27,186.26,3.25]
[1734866058114,4.67329995,186.27,186.19,2.9885]
[1734866058314,4.30632148,186.26,186.19,1.7077]
[1734866058516,4.30632148,186.25,186.19,1.7077]
[1734866058815,2.54,186.25,186.19,1.7077]
[1734866060008,1.8,186.25,186.19,1.7077]
[1734866060209,3.3826,186.35,186.19,1.7077]
[1734866060417,2.54,186.34,186.19,1.7077]
[1734866061316,4.66427786,186.33,186.19,1.7077]
[1734866061510,4.66427786,186.32,186.19,1.7077]
[1734866061720,1.76193556,186.31,186.19,1.7077]
[1734866062014,4.30193556,186.3,186.19,1.7077]
[1734866062216,2.54,186.3,186.19,1.7077]
[1734866063914,2.54,186.29,186.19,1.7077]
[1734866064719,2.54,186.29,186.19,61.00638399]
[1734866066523,2.54,186.29,186.19,1.7077]
[1734866069725,3.3826,186.35,186.19,1.7077]
[1734866069922,7.19983042,186.34,186.19,1.7077]
[1734866070122,4.65983042,186.33,186.19,1.7077]
[1734866070319,2.89959306,186.32,186.19,1.7077]
[1734866070519,1.76024154,186.31,186.19,1.7077]
[1734866070823,2.54,186.3,186.19,61.00638399]
[1734866071023,2.54,186.29,186.19,61.00638399]
[1734866074630,3.3826,186.35,186.19,61.00638399]
[1734866074828,7.20073784,186.34,186.19,61.00638399]
[1734866075031,4.66073784,186.33,186.19,61.00638399]
[1734866075331,4.66073784,186.32,186.19,61.00638399]
[1734866075530,4.66114179,186.31,186.19,61.00638399]
[1734866075721,4.30054999,186.3,186.19,61.00638399]
[1734866076029,2.54,186.3,186.19,61.00638399]
[1734866076732,2.54,186.3,186.2,59.29868399]
[1734866078531,1.76173054,186.29,186.2,59.29868399]
[1734866078727,2.54,186.3,186.2,59.29868399]
[1734866078933,1.76173054,186.29,186.2,59.29868399]
[1734866079129,2.54,186.3,186.2,59.29868399]
[1734866079329,1.76182971,186.29,186.2,59.29868399]
[1734866079530,2.54,186.3,186.2,59.29868399]
[1734866079727,2.54,186.3,186.21,59.29868399]
[1734866079728,1.76199372,186.29,186.21,59.29868399]
[1734866079931,2.54,186.3,186.21,59.29868399]
[1734866080236,2.54,186.3,186.22,1.7027]
[1734866080433,1.76209881,186.29,186.22,1.7027]
[1734866080632,2.54,186.3,186.22,1.7027]
[1734866080931,1.76235147,186.29,186.22,15.00167779]
[1734866081132,2.54,186.3,186.22,15.00167779]
[1734866081430,1.76246567,186.29,186.22,15.00167779]
[1734866081631,2.54,186.3,186.22,15.00167779]
[1734866081932,1.7627371,186.29,186.22,15.00167779]
[1734866082129,2.54,186.3,186.23,13.29897779]
[1734866082432,1.76284978,186.29,186.23,13.29897779]
[1734866082633,2.54,186.3,186.23,13.29897779]
[1734866082935,1.76316437,186.29,186.23,13.29897779]
[1734866083129,2.54,186.3,186.22,80.98262904]
[1734866083327,1.76328636,186.29,186.22,80.98262904]
[1734866083531,2.54,186.3,186.22,80.98262904]
[1734866083737,1.76383196,186.29,186.23,79.27992904]
[1734866083935,2.54,186.3,186.23,79.27992904]
[1734866084139,1.76383196,186.29,186.23,79.27992904]
[1734866084337,2.54,186.3,186.23,79.27992904]
[1734866084537,1.76395977,186.29,186.23,79.27992904]
[1734866084836,2.54,186.3,186.24,13.30871172]
[1734866085041,1.76460185,186.29,186.24,13.30871172]
[1734866085232,2.54,186.3,186.24,13.30871172]
[1734866085433,1.7647307,186.29,186.24,13.30871172]
[1734866085635,2.54,186.3,186.24,13.30871172]
[1734866085835,1.76473006,186.29,186.25,13.30871172]
[1734866086035,1.76473006,186.28,186.25,13.30871172]
[1734866086339,2.54,186.3,186.25,13.30871172]
[1734866086536,1.76554308,186.29,186.25,13.30871172]
[1734866086839,1.76554308,186.28,186.24,59.29868399]
[1734866087132,1.76646139,186.27,186.24,59.29868399]
[1734866087332,2.54,186.3,186.24,59.29868399]
[1734866087533,4.67643222,186.29,186.24,59.29868399]
[1734866087733,1.76646058,186.28,186.24,59.29868399]
[1734866087934,1.76646058,186.27,186.24,59.29868399]
[1734866088234,2.54,186.3,186.24,59.29868399]
[1734866088432,4.67925205,186.29,186.24,59.29868399]
[1734866088632,2.54,186.3,186.24,59.29868399]
[1734866088633,4.67925205,186.28,186.24,59.29868399]
[1734866088836,2.54,186.3,186.25,13.32080725]
[1734866088837,4.67925205,186.27,186.25,13.32080725]
[1734866089041,7.21925205,186.26,186.25,13.32080725]
[1734866089736,7.21925205,186.26,186.22,1.7027]
[1734866089933,4.67925205,186.25,186.22,1.7027]
[1734866090133,1.76753429,186.24,186.22,1.7027]
[1734866090333,2.54,186.26,186.22,1.7027]
[1734866090534,4.68229436,186.25,186.22,1.7027]
[1734866090730,1.76843652,186.24,186.22,1.7027]
[1734866090932,1.76843652,186.23,186.22,1.7027]
[1734866091632,1.76843652,186.23,186.22,15.02185775]
[1734866094343,4.68871801,186.23,186.22,13.31915775]
[1734866095536,2.92036318,186.23,186.22,13.31915775]
[1734866095841,4.69273232,186.23,186.22,13.31915775]
[1734866097446,4.69273232,186.23,186.2,79.28454813]
[1734866097639,1.77236914,186.22,186.2,79.28454813]
[1734866097838,1.77236914,186.21,186.2,79.28454813]
[1734866098149,1.77236914,186.21,186.2,59.29868399]
[1734866098540,2.54,186.26,186.2,59.29868399]
[1734866098747,4.69300296,186.25,186.2,59.29868399]
[1734866098946,4.69300296,186.24,186.2,72.61885446]
[1734866099243,4.69300296,186.23,186.2,72.61885446]
[1734866099446,1.77246361,186.22,186.2,72.61885446]
[1734866099649,1.77246361,186.21,186.2,72.61885446]
[1734866099846,1.77246361,186.21,186.2,59.29868399]
[1734866100851,1.77246361,186.21,186.2,92.60841269]
[1734866101149,1.77233495,186.21,186.2,92.60841269]
[1734866102151,2.54,186.26,186.2,92.60841269]
[1734866102352,4.69231895,186.25,186.2,92.60841269]
[1734866102543,4.69231895,186.24,186.2,92.60841269]
[1734866102748,4.69231895,186.23,186.2,92.60841269]
[1734866102948,7.23231895,186.22,186.17,75.11595337]
[1734866103150,4.69231895,186.21,186.17,75.11595337]
[1734866103349,4.69231895,186.2,186.17,75.11595337]
[1734866103550,2.92008021,186.19,186.17,75.11595337]
[1734866103754,1.77154164,186.18,186.17,75.11595337]
[1734866103953,1.77154164,186.18,186.13,88.94802599]
[1734866104154,2.54,186.22,186.13,88.94802599]
[1734866104356,4.68945969,186.21,186.13,88.94802599]
[1734866104547,1.77079633,186.2,186.13,88.94802599]
[1734866104851,2.54,186.22,186.13,88.94802599]
[1734866105052,1.7704114,186.21,186.14,122.04419111]
[1734866105244,2.54,186.22,186.14,122.04419111]
[1734866105450,2.54,186.26,186.15,1.6595]
[1734866105649,4.68752234,186.25,186.15,1.6595]
[1734866105849,4.68752234,186.24,186.15,1.6595]
[1734866106051,4.68752234,186.23,186.15,1.6595]
[1734866106249,1.77037959,186.22,186.17,89.5601325]
[1734866106555,2.54,186.26,186.18,3.4138]
[1734866106748,4.68751051,186.25,186.18,3.4138]
[1734866106944,2.54,186.26,186.18,3.4138]
[1734866106945,4.68751051,186.24,186.18,3.4138]
[1734866107155,1.77037653,186.23,186.18,36.49248428]
[1734866107454,1.77037653,186.22,186.18,36.49248428]
[1734866107652,2.54,186.26,186.18,36.49248428]
[1734866107854,4.68747734,186.25,186.18,36.49248428]
[1734866108152,4.68747734,186.24,186.19,13.23144679]
[1734866108357,4.68747734,186.23,186.19,13.23144679]
[1734866108552,1.77036802,186.22,186.19,13.23144679]
[1734866108754,2.54,186.26,186.19,13.23144679]
[1734866109057,4.68747439,186.25,186.2,13.23133974]
[1734866109356,4.68747439,186.24,186.2,13.23133974]
[1734866109559,4.68747439,186.23,186.2,13.23133974]
[1734866109758,7.22747439,186.22,186.2,13.23133974]
[1734866109952,7.22747439,186.21,186.2,13.23133974]
[1734866110752,7.22747439,186.21,186.2,3.15243974]
[1734866111049,7.22747439,186.21,186.2,0.99173974]
[1734866114354,4.68747439,186.21,186.2,0.99173974]
[1734866114556,7.22747439,186.21,186.2,0.99173974]
[1734866115061,7.22747439,186.21,186.13,1.6493]
[1734866115254,4.68747439,186.2,186.13,1.6493]
[1734866115557,3.3871,186.29,186.13,1.6493]
[1734866115558,7.22747439,186.19,186.13,1.6493]
[1734866115762,4.31035697,186.18,186.13,1.6493]
[1734866115953,3.3871,186.29,186.13,1.6493]
[1734866115954,2.54,186.19,186.13,1.6493]
[1734866116256,2.54,186.18,186.13,1.6493]
[1734866116554,3.3871,186.29,186.13,1.6493]
[1734866116555,2.54,186.17,186.13,1.6493]
[1734866117456,2.54,186.17,186.1,1.6294]
[1734866120061,3.3871,186.29,186.1,1.6294]
[1734866120257,2.52,186.28,186.1,4.1494]
[1734866120660,2.52,186.27,186.1,4.1494]
[1734866123159,0.95510486,186.26,186.1,4.1494]
[1734866123361,0.95510486,186.26,186.1,1.6294]
[1734866123872,0.95507567,186.25,186.1,1.6294]
[1734866124165,2.52,186.27,186.1,1.6294]
[1734866124464,0.95524722,186.26,186.1,1.6294]
[1734866126566,0.95557652,186.25,186.1,1.6294]
[1734866126769,0.95557652,186.24,186.1,1.6294]
[1734866126968,3.47557652,186.23,186.1,1.6294]
[1734866127172,1.7328,186.22,186.1,1.6294]
[1734866127968,0.95556785,186.21,186.08,1.6399]
[1734866128267,0.95556785,186.21,186.06,79.13731294]
[1734866128866,61.48,186.2,186.06,79.13731294]
[1734866129065,8.65791012,186.19,186.06,79.13731294]
[1734866129266,0.95521513,186.18,186.06,79.13731294]
[1734866129662,0.95504038,186.17,186.06,79.13731294]
[1734866129862,0.95504038,186.16,186.06,79.13731294]
[1734866130060,3.47504038,186.15,186.06,79.13731294]
[1734866130365,5.19344038,186.14,186.06,79.13731294]
[1734866130566,3.47504038,186.13,186.06,79.13731294]
[1734866130765,2.52,186.13,186.06,79.13731294]
[1734866135492,2.52,186.13,185.98,1.6145]
[1734866136886,0.95478793,186.12,185.98,1.6145]
[1734866138085,2.54,186.11,185.98,1.6145]
[1734866147095,2.54,186.1,185.98,1.6145]
[1734866147398,2.54,186.09,185.98,1.6145]
[1734866147603,2.54,186.08,185.98,1.6145]
[1734866152806,2.54,186.08,185.94,118.98240424]
[1734866154206,1.7046,186.07,185.94,118.98240424]
[1734866154405,4.9309,186.07,185.94,118.98240424]
[1734866155609,4.9309,186.07,185.86,19.4026651]
[1734866155811,4.9309,186.07,185.87,59.54431055]
[1734866156405,0.95566198,186.06,185.87,59.54431055]
[1734866157009,11.93198191,186.06,185.87,59.54431055]
[1734866157209,0.95566198,186.05,185.87,59.54431055]
[1734866157512,2.52,186.04,185.87,59.54431055]
[1734866157710,0.95566198,186.03,185.87,59.54431055]
[1734866158109,0.95566198,186.03,185.87,62.91321055]
[1734866160010,2.52,186.02,185.87,62.91321055]
[1734866161508,2.52,186.01,185.87,62.91321055]
[1734866161708,2.52,186.0,185.87,62.91321055]
[1734866162614,2.52,186.0,185.87,122.51687682]
[1734866163614,2.52,186.0,185.88,59.63481567]
[1734866165813,2.52,186.0,185.87,3.3689]
[1734866173028,2.52,186.0,185.82,59.56401668]
[1734866175533,0.95341746,185.99,185.82,59.56401668]
[1734866175738,2.52,186.0,185.82,59.56401668]
[1734866175931,2.52,186.0,185.81,1.18166372]
[1734866178135,2.52,186.0,185.82,4.9269]
[1734866180044,0.95316503,185.99,185.82,4.9269]
[1734866180236,2.57096503,185.99,185.82,4.9269]
[1734866180431,0.95316503,185.98,185.82,4.9269]
[1734866180833,3.2334,185.97,185.82,4.9269]
[1734866181037,3.47316503,185.96,185.82,4.9269]
[1734866181238,0.95316503,185.95,185.82,4.9269]
[1734866181439,0.95316503,185.95,185.82,3.2844]
[1734866182444,2.52,185.94,185.82,3.2844]
[1734866189139,2.52,185.94,185.79,1.7388]
[1734866189343,0.95260152,185.93,185.79,1.7388]
[1734866189735,1.6222,185.92,185.79,1.7388]
[1734866193142,0.9531565,185.91,185.79,1.7388]
[1734866193346,2.52,185.9,185.79,1.7388]
[1734866193943,2.52,185.9,185.77,165.68098503]
[1734866194340,1.6538,185.89,185.77,165.68098503]
[1734866196042,1.6538,185.89,185.77,162.35588503]
[1734866196236,1.6538,185.89,185.73,209.20188854]
[1734866196237,2.67867839,185.88,185.73,3.3684]
[1734866196442,1.726,185.88,185.73,3.3684]
[1734866197145,0.95204884,185.87,185.73,3.3684]
[1734866197345,2.54,185.86,185.73,3.3684]
[1734866197642,0.95180982,185.85,185.73,3.3684]
[1734866197844,7.70733105,185.85,185.73,3.3684]
[1734866198047,0.95180982,185.84,185.73,3.3684]
[1734866198236,0.95180982,185.84,185.69,59.70407677]
[1734866199543,17.71313531,185.85,185.69,59.70407677]
[1734866199845,0.950899,185.84,185.69,59.70407677]
[1734866200247,0.95081766,185.83,185.69,59.70407677]
[1734866200447,3.49081766,185.82,185.69,59.70407677]
[1734866200642,2.54,185.82,185.69,59.70407677]
[1734866201745,1.5819,185.85,185.69,59.70407677]
[1734866201943,3.49081522,185.84,185.69,59.70407677]
[1734866202242,3.49081522,185.83,185.69,59.70407677]
[1734866202444,2.54,185.82,185.69,59.70407677]
[1734866202747,2.54,185.81,185.69,59.70407677]
[1734866203045,2.54,185.8,185.69,59.70407677]
[1734866203247,2.54,185.79,185.69,59.70407677]
[1734866203849,1.5819,185.85,185.69,59.70407677]
[1734866204044,3.49084754,185.84,185.69,59.70407677]
[1734866204346,0.95084754,185.83,185.69,59.70407677]
[1734866204551,3.49084754,185.82,185.69,59.70407677]
[1734866204845,0.95084754,185.81,185.69,59.70407677]
[1734866205245,2.54,185.82,185.69,59.70407677]
[1734866205444,0.95073505,185.81,185.69,59.70407677]
[1734866206249,2.54,185.82,185.69,59.70407677]
[1734866206440,0.95069633,185.81,185.68,1.7164]
[1734866207349,2.54,185.82,185.68,1.7164]
[1734866207542,0.95067383,185.81,185.68,1.7164]
[1734866207944,12.49440768,185.85,185.68,1.7164]
[1734866207945,2.54,185.8,185.68,1.7164]
[1734866208141,2.54,185.79,185.68,1.7164]
[1734866210248,2.52,185.78,185.68,1.7164]
[1734866212848,12.49318129,185.85,185.68,1.7164]
[1734866213051,3.49023811,185.84,185.68,1.7164]
[1734866213347,0.95023811,185.83,185.68,1.7164]
[1734866214351,3.49023811,185.82,185.61,2.54]
[1734866214545,2.65893811,185.81,185.61,2.54]
[1734866214748,3.2804,185.81,185.61,2.54]
[1734866214949,0.95004662,185.8,185.6,59.44709048]
[1734866215251,3.2804,185.81,185.6,59.44709048]
[1734866215450,0.9498453,185.8,185.6,59.44709048]
[1734866215649,0.94980223,185.79,185.6,59.44709048]
[1734866215848,3.48980223,185.78,185.6,59.44709048]
[1734866216148,0.94980223,185.77,185.6,59.44709048]
[1734866216341,2.54,185.78,185.6,59.44709048]
[1734866216548,2.54,185.78,185.57,62.04374075]
[1734866217051,2.54,185.77,185.57,62.04374075]
[1734866218253,2.54,185.77,185.58,59.50374075]
[1734866219451,2.54,185.77,185.59,5.1356]
[1734866222657,2.54,185.76,185.6,2.54]
[1734866222855,2.54,185.75,185.6,2.54]
[1734866223259,2.54,185.75,185.6,62.04374075]
[1734866224454,2.54,185.75,185.6,2.54]
[1734866226760,2.54,185.75,185.61,59.50374075]
[1734866227855,2.54,185.75,185.59,64.63934075]
[1734866228860,2.54,185.75,185.59,77.81346232]
[1734866229663,2.54,185.75,185.61,59.50374075]
[1734866230760,2.54,185.75,185.61,13.17412157]
[1734866231863,2.54,185.75,185.62,13.17412157]
[1734866233462,1.5924,185.74,185.62,13.17412157]
[1734866234063,1.5924,185.74,185.6,13.17412157]
[1734866234968,1.5924,185.74,185.59,5.1356]
[1734866235163,3.2076,185.74,185.59,5.1356]
[1734866235368,0.94777144,185.73,185.59,5.1356]
[1734866236170,0.94777144,185.73,185.58,79.26492311]
[1734866236370,0.94777144,185.73,185.58,13.425674]
[1734866237059,16.17,185.72,185.58,13.425674]
[1734866237258,16.17,185.7,185.58,13.425674]
[1734866237464,16.17,185.68,185.58,13.425674]
[1734866237763,19.65777144,185.67,185.49,15.14007104]
[1734866237963,0.94777144,185.66,185.49,15.14007104]
[1734866238271,16.17,185.65,185.49,15.14007104]
[1734866238468,0.94777144,185.64,185.49,15.14007104]
[1734866238662,2.54,185.63,185.49,15.14007104]
[1734866238859,0.94777144,185.62,185.49,1.7114]
[1734866240367,17.01210101,185.62,185.49,1.7114]
[1734866240563,2.62197144,185.61,185.49,1.7114]
[1734866240759,0.94777144,185.6,185.49,1.7114]
[1734866241068,3.4871503,185.59,185.49,1.7114]
[1734866241271,2.54,185.59,185.49,1.7114]
[1734866241672,2.54,185.59,185.46,1.6395]
[1734866242567,1.6539,185.58,185.46,1.6395]
[1734866242767,3.277,185.58,185.46,1.6395]
[1734866243872,2.54,185.57,185.46,1.6395]
[1734866244469,2.54,185.56,185.46,1.6395]
[1734866246068,1.6742,185.61,185.46,1.6395]
[1734866246271,2.54,185.6,185.46,1.6395]
[1734866250476,4.2167,185.6,185.46,1.6395]
[1734866250682,1.7044,185.59,185.46,1.6395]
[1734866251983,2.54,185.58,185.46,1.6395]
[1734866252675,2.54,185.57,185.46,1.6395]
[1734866253074,2.54,185.56,185.46,1.6395]
[1734866253975,1.6767,185.6,185.46,1.6395]
[1734866254381,2.54,185.59,185.46,1.6395]
[1734866256978,1.6767,185.6,185.46,1.6395]
[1734866257182,2.54,185.58,185.46,1.6395]
[1734866258685,1.6767,185.6,185.46,1.6395]
[1734866258885,2.54,185.59,185.46,1.6395]
[1734866259884,2.54,185.58,185.46,1.6395]
[1734866260689,2.54,185.57,185.46,1.6395]
[1734866260886,2.54,185.56,185.46,1.6395]
[1734866263894,82.8098964,185.63,185.46,1.6395]
[1734866264092,2.54,185.62,185.46,1.6395]
[1734866264585,2.54,185.61,185.46,1.6395]
[1734866267895,82.8098964,185.63,185.46,1.6395]
[1734866268195,2.54,185.62,185.46,1.6395]
[1734866268595,2.54,185.62,185.46,61.14324075]
[1734866270390,2.54,185.61,185.46,61.14324075]
[1734866272798,2.54,185.61,185.47,59.50374075]
[1734866273988,2.54,185.61,185.46,74.53197129]
[1734866275198,2.54,185.61,185.46,61.14324075]
[1734866276198,1.6825,185.6,185.46,59.50374075]
[1734866276696,1.6825,185.6,185.45,59.50374075]
[1734866277696,1.6825,185.6,185.46,13.38873054]
[1734866279096,0.94603438,185.59,185.46,13.38873054]
[1734866279592,1.6565,185.58,185.44,14.98173054]
[1734866279802,2.54,185.57,185.44,14.98173054]
[1734866280399,2.54,185.57,185.44,1.593]
[1734866280600,4.2228,185.57,185.44,1.593]
[1734866281600,1.6828,185.57,185.44,1.593]
[1734866281795,2.54,185.56,185.44,1.593]
[1734866283305,2.54,185.56,185.43,13.38873054]
[1734866284502,1.79896022,185.55,185.43,13.38873054]
[1734866284698,4.33896022,185.54,185.43,13.38873054]
[1734866284899,1.79896022,185.53,185.42,1.7148]
[1734866285202,4.33896022,185.52,185.42,4.2548]
[1734866285397,1.79896022,185.51,185.42,4.2548]
[1734866285597,1.79896022,185.5,185.42,4.2548]
[1734866285799,1.79896022,185.49,185.45,59.50374075]
[1734866285998,2.54,185.52,185.45,59.50374075]
[1734866286895,2.54,185.52,185.44,72.89247129]
[1734866287603,2.54,185.52,185.44,59.50374075]
[1734866288708,2.54,185.52,185.43,13.38873054]
[1734866289807,2.54,185.52,185.42,74.60727129]
[1734866290701,2.54,185.52,185.42,15.10353054]
[1734866291706,2.54,185.52,185.42,1.7148]
[1734866292206,2.54,185.52,185.41,72.89247129]
[1734866292503,1.6793,185.51,185.41,74.52487129]
[1734866292901,1.6793,185.51,185.41,1.6324]
[1734866293708,2.54,185.5,185.41,1.6324]
[1734866294806,2.54,185.5,185.41,74.52487129]
[1734866296704,2.54,185.5,185.41,61.13614075]
[1734866297903,1.78878619,185.49,185.41,74.52487129]
[1734866298105,2.54,185.5,185.41,74.52487129]
[1734866298307,1.78878619,185.49,185.41,74.52487129]
[1734866298510,1.78878619,185.48,185.41,74.52487129]
[1734866298802,2.54,185.5,185.41,61.13614075]
[1734866299197,2.54,185.5,185.42,2.54]
[1734866299806,2.54,185.5,185.43,72.89247129]
[1734866301503,2.54,185.5,185.42,72.89247129]
[1734866302914,2.54,185.5,185.41,74.52487129]
[1734866304011,2.54,185.5,185.41,1.6324]
[1734866305603,1.6646,185.49,185.41,1.6324]
[1734866307108,2.54,185.48,185.41,1.6324]
[1734866308713,1.6825,185.6,185.41,1.6324]
[1734866309017,1.6337,185.58,185.41,1.6324]
[1734866309217,1.6337,185.58,185.42,2.54]
[1734866309614,1.6825,185.6,185.42,2.54]
[1734866309919,2.54,185.59,185.42,2.54]
[1734866310508,2.54,185.59,185.47,59.50374075]
[1734866310709,1.77865079,185.58,185.48,1.6704]
[1734866310907,1.77865079,185.57,185.48,1.6704]
[1734866311107,3.2165,185.65,185.48,5.8537]
[1734866311410,2.54,185.64,185.48,5.8537]
[1734866312111,2.54,185.64,185.49,72.89247129]
[1734866312820,2.54,185.64,185.5,13.38873054]
[1734866313714,2.54,185.64,185.49,13.38873054]
[1734866313912,0.9477629,185.63,185.49,13.38873054]
[1734866314413,0.94781152,185.62,185.49,13.38873054]
[1734866314619,18.68952643,185.64,185.49,13.38873054]
[1734866314920,0.94775012,185.63,185.45,72.89247129]
[1734866316321,0.94775012,185.63,185.46,1.6827]
[1734866316921,3.4874663,185.62,185.46,1.6827]
[1734866317120,2.54,185.62,185.46,1.6827]
[1734866317316,2.54,185.62,185.46,74.57517129]
[1734866318025,2.54,185.62,185.46,1.6827]
[1734866318412,2.54,185.62,185.46,3.3811]
[1734866318922,2.54,185.62,185.46,5.9211]
[1734866320225,2.54,185.62,185.47,59.50374075]
[1734866321223,2.54,185.62,185.46,78.81357129]
[1734866321426,2.54,185.61,185.46,78.81357129]
[1734866321821,2.54,185.61,185.48,59.50374075]
[1734866322621,87.46777214,185.65,185.48,72.89247129]
[1734866322826,2.54,185.64,185.48,72.89247129]
[1734866323124,1.76809741,185.63,185.48,72.89247129]
[1734866323324,1.76809741,185.62,185.48,72.89247129]
[1734866323520,1.76809741,185.61,185.48,72.89247129]
[1734866323721,1.76809741,185.6,185.5,59.50374075]
[1734866323920,1.76809741,185.59,185.51,3.5991]
[1734866324123,1.76809741,185.58,185.51,3.5991]
[1734866324325,0.68929741,185.57,185.51,3.5991]
[1734866324518,87.46777214,185.65,185.51,3.5991]
[1734866324720,2.52,185.64,185.51,3.5991]
[1734866324926,1.88952199,185.66,185.51,3.5991]
[1734866325125,2.52,185.65,185.51,3.5991]
[1734866325928,2.52,185.65,185.51,63.10284075]
[1734866327134,2.52,185.64,185.51,3.5991]
[1734866327331,1.88952199,185.66,185.51,3.5991]
[1734866327625,2.52,185.65,185.51,3.5991]
[1734866327829,2.52,185.66,185.51,19.7991]
[1734866328827,3.4177,185.72,185.51,19.7991]
[1734866329132,2.52,185.71,185.53,16.2]
[1734866329331,2.52,185.71,185.54,3.2698]
[1734866330130,2.52,185.71,185.55,59.50374075]
[1734866330331,2.52,185.71,185.56,2.52]
[1734866335538,1.5695,185.72,185.56,2.52]
[1734866335735,2.52,185.71,185.56,2.52]
[1734866336037,2.52,185.7,185.56,2.52]
[1734866336340,1.75303532,185.69,185.56,2.52]
[1734866336534,1.75303532,185.68,185.56,2.52]
[1734866336732,1.75303532,185.67,185.56,2.52]
[1734866336936,2.52,185.7,185.56,2.52]
[1734866337137,1.75303064,185.69,185.56,2.52]
[1734866337337,1.75303064,185.68,185.56,2.52]
[1734866337631,3.4641,185.77,185.56,2.52]
[1734866337837,5.21951541,185.76,185.56,2.52]
[1734866338039,1.75268474,185.75,185.56,2.52]
[1734866338240,1.75268474,185.74,185.56,2.52]
[1734866338434,1.75268474,185.73,185.56,2.52]
[1734866338632,1.75268474,185.72,185.56,2.52]
[1734866338842,1.75268474,185.71,185.56,2.52]
[1734866339038,1.75268474,185.7,185.56,2.52]
[1734866339238,2.52,185.72,185.56,2.52]
[1734866339437,1.75165148,185.71,185.56,2.52]
[1734866339639,1.75165148,185.7,185.56,2.52]
[1734866339834,2.52,185.72,185.56,2.52]
[1734866340039,1.75164947,185.71,185.56,2.52]
[1734866340242,1.75164947,185.7,185.56,2.52]
[1734866340444,1.75164947,185.69,185.56,2.52]
[1734866340644,2.52,185.72,185.56,2.52]
[1734866341142,1.75161961,185.71,185.56,2.52]
[1734866341337,16.00977477,185.84,185.56,2.52]
[1734866341338,1.6931,185.84,185.56,2.52]
[1734866341536,5.21822238,185.83,185.57,1.07776041]
[1734866341740,2.69822238,185.82,185.58,16.2]
[1734866341937,1.75101321,185.81,185.58,16.2]
[1734866342338,1.75101321,185.81,185.59,0.99017714]
[1734866342546,1.75101321,185.81,185.6,2.52]
[1734866342846,1.75101321,185.81,185.61,77.77134029]
[1734866343041,1.75101321,185.81,185.61,76.7812689]
[1734866343250,1.75101321,185.81,185.63,16.2]
[1734866343448,4.2131,185.84,185.64,2.52]